bitfinex-derivatives/quotes_SOLF0:USTF0_20250720
["timestamp","ask_amount","ask_price","bid_price","bid_amount"]
[1753050274962,3.12,179.57,179.55,3.18]
[1753050275476,3.12,179.56,179.54,3.18]
[1753050275866,0.03557929,179.57,179.52,3.51099658]
[1753050275867,0.03557929,179.57,179.55,8.7471]
[1753050276071,0.03557929,179.57,179.51,6.69099658]
[1753050276264,3.15557929,179.57,179.51,6.69099658]
[1753050276473,3.12,179.6,179.5,3.18]
[1753050276668,3.12,179.57,179.5,3.18]
[1753050276973,3.16041191,179.56,179.49,3.18]
[1753050277173,3.16041191,179.56,179.52,3.18]
[1753050277370,3.12,179.55,179.52,3.18]
[1753050277572,3.12,179.55,179.49,3.18]
[1753050277874,3.16080219,179.55,179.47,3.18]
[1753050278069,3.16080219,179.55,179.46,3.51099658]
[1753050278070,3.12,179.51,179.48,8.7491]
[1753050278373,3.12,179.51,179.46,3.51099658]
[1753050278374,3.12,179.56,179.47,3.18]
[1753050278583,21.25997024,179.64,179.49,3.18]
[1753050278584,3.12,179.52,179.49,3.18]
[1753050278875,3.12,179.5,179.44,3.18]
[1753050279376,0.0389301,179.49,179.44,3.18]
[1753050279676,0.0389301,179.49,179.42,3.18]
[1753050279870,0.0389301,179.49,179.44,3.51099658]
[1753050280067,0.0389301,179.49,179.47,5.5694]
[1753050280274,3.12,179.5,179.47,3.18]
[1753050280681,3.12,179.49,179.47,3.18]
[1753050280872,3.12,179.49,179.42,3.18]
[1753050281171,5.5701,179.46,179.42,5.5708]
[1753050281370,3.12,179.45,179.39,3.18]
[1753050281672,3.12,179.45,179.4,3.51099658]
[1753050281872,3.16030381,179.46,179.44,5.5702]
[1753050282079,3.12,179.45,179.42,3.18]
[1753050282272,3.12,179.45,179.42,8.7509]
[1753050282466,3.12,179.45,179.42,3.18]
[1753050282974,0.04030381,179.46,179.42,3.51099658]
[1753050283174,0.04030381,179.46,179.45,3.51099658]
[1753050283479,0.04030381,179.46,179.45,12.26119658]
[1753050283673,3.12,179.51,179.46,3.18]
[1753050283876,8.6875,179.54,179.46,3.18]
[1753050284777,8.6875,179.54,179.48,3.51099658]
[1753050284982,8.6875,179.54,179.48,6.73170915]
[1753050285278,3.12,179.55,179.48,0.04071257]
[1753050285673,3.51099658,179.56,179.45,3.18]
[1753050285674,3.12,179.51,179.45,3.18]
[1753050285980,3.12,179.51,179.5,0.04222148]
[1753050286378,8.6885,179.51,179.47,5.5695]
[1753050286682,3.51099658,179.56,179.49,0.03819157]
[1753050286978,5.5686,179.5,179.49,0.03819157]
[1753050287173,8.6886,179.5,179.49,0.03819157]
[1753050287976,3.12,179.5,179.49,0.03819157]
[1753050290176,8.6886,179.5,179.49,0.03819157]
[1753050290379,3.12,179.5,179.49,0.03819157]
[1753050291283,5.5681,179.52,179.49,5.60679157]
[1753050291486,3.12,179.52,179.49,3.21819157]
[1753050291685,3.51099658,179.57,179.49,3.21819157]
[1753050291686,3.51099658,179.57,179.49,3.18]
[1753050291979,3.12,179.56,179.46,3.18]
[1753050292173,3.51099658,179.54,179.49,0.04075555]
[1753050292374,5.5686,179.5,179.49,0.04075555]
[1753050292579,8.6886,179.5,179.49,0.04075555]
[1753050292771,3.12,179.5,179.43,3.18]
[1753050292970,5.5698,179.47,179.43,8.7505]
[1753050293283,3.12,179.45,179.43,8.7505]
[1753050293983,3.12,179.47,179.44,5.5704]
[1753050294179,0.04195178,179.46,179.45,3.18]
[1753050294379,3.16195178,179.46,179.38,3.18]
[1753050294579,3.16195178,179.46,179.4,5.5716]
[1753050295075,3.12,179.43,179.41,3.18]
[1753050295479,3.12,179.42,179.39,3.18]
[1753050295683,3.12,179.41,179.35,3.51099658]
[1753050295877,3.51099658,179.45,179.36,3.18]
[1753050296081,3.12,179.39,179.36,3.18]
[1753050296280,3.12,179.39,179.37,8.7524]
[1753050296776,3.12,179.38,179.34,127.66]
[1753050296982,3.12,179.39,179.31,3.51099658]
[1753050297183,3.12,179.39,179.3,3.18]
[1753050297482,3.12,179.36,179.33,8.7537]
[1753050297672,3.12,179.36,179.33,3.18]
[1753050297877,3.1617318,179.36,179.33,8.7537]
[1753050298076,0.0417318,179.36,179.33,3.06]
[1753050298370,0.0417318,179.36,179.35,8.6333]
[1753050298577,8.791,179.43,179.36,3.06]
[1753050298773,3.22,179.43,179.36,3.06]
[1753050298979,5.5716,179.41,179.35,3.51099658]
[1753050299181,3.22,179.39,179.37,3.06]
[1753050299579,3.22,179.39,179.37,8.6326]
[1753050299978,3.22,179.39,179.37,3.06]
[1753050300273,3.22,179.39,179.36,0.03765921]
[1753050300274,3.22,179.43,179.36,0.03765921]
[1753050300474,3.22,179.41,179.36,0.03765921]
[1753050300681,5.5727,179.37,179.36,0.03765921]
[1753050300882,3.22,179.36,179.3,3.06]
[1753050301179,0.03669203,179.38,179.35,3.06]
[1753050301377,0.03669203,179.38,179.37,12.14369658]
[1753050301581,3.51099658,179.48,179.37,3.51099658]
[1753050301787,6.80427054,179.47,179.38,3.06]
[1753050302076,5.5707,179.44,179.4,5.5716]
[1753050302278,0.04156611,179.44,179.41,3.06]
[1753050302472,0.04156611,179.44,179.43,12.14179658]
[1753050302883,3.22,179.51,179.46,3.51099658]
[1753050303082,211.54676551,179.59,179.49,3.06]
[1753050303083,3.22,179.53,179.49,3.06]
[1753050303279,3.22,179.52,179.49,3.06]
[1753050303478,3.22,179.54,179.49,3.06]
[1753050303678,5.5671,179.55,179.5,3.06]
[1753050303679,3.22,179.53,179.5,3.06]
[1753050303980,211.54676551,179.59,179.41,3.51099658]
[1753050304183,3.22,179.54,179.52,3.06]
[1753050304384,3.22,179.56,179.53,3.06]
[1753050304580,8.7872,179.55,179.51,5.5682]
[1753050304780,3.22,179.55,179.52,3.06]
[1753050304982,3.22,179.57,179.53,3.09903467]
[1753050305182,3.22,179.56,179.54,5.5674]
[1753050305382,3.22,179.56,179.53,3.09903467]
[1753050305684,8.7866,179.57,179.54,3.06]
[1753050305984,3.22,179.56,179.54,3.06]
[1753050306181,3.22,179.56,179.53,0.03903467]
[1753050306491,3.22,179.58,179.53,0.03903467]
[1753050307084,6.84588965,179.57,179.48,3.06]
[1753050307275,3.58370686,179.56,179.51,5.5681]
[1753050307480,3.22,179.54,179.48,3.06]
[1753050307675,3.22,179.54,179.43,132.90588562]
[1753050307875,3.22,179.54,179.46,3.06]
[1753050308287,8.7876,179.54,179.5,5.5685]
[1753050308474,3.25997083,179.52,179.5,5.5685]
[1753050308780,3.22,179.51,179.49,5.5687]
[1753050308986,3.22,179.51,179.49,8.6287]
[1753050309782,3.22,179.51,179.42,3.06]
[1753050310184,5.569,179.49,179.45,5.57]
[1753050310382,3.22,179.47,179.45,5.57]
[1753050310584,3.22,179.47,179.43,3.06]
[1753050310787,3.22,179.47,179.44,3.06]
[1753050310981,3.22,179.47,179.4,374.5]
[1753050311182,0.03632469,179.48,179.43,3.06]
[1753050311580,3.22,179.47,179.45,3.06]
[1753050311783,3.22,179.46,179.43,3.06]
[1753050311987,3.22,179.46,179.4,374.5]
[1753050311988,3.22,179.47,179.4,3.06]
[1753050312187,3.22,179.47,179.41,5.5713]
[1753050312389,3.22,179.47,179.4,3.06]
[1753050312792,3.22,179.45,179.42,5.5711]
[1753050312994,3.22,179.46,179.37,3.06]
[1753050313189,5.571,179.43,179.4,5.5717]
[1753050313385,3.22,179.41,179.38,3.06]
[1753050313885,3.22,179.41,179.36,126.96]
[1753050314091,3.22,179.41,179.39,3.06]
[1753050314290,3.22,179.41,179.37,3.06]
[1753050314594,3.22,179.41,179.39,5.5719]
[1753050315092,0.0398764,179.43,179.37,3.06]
[1753050315393,0.0398764,179.43,179.4,3.06]
[1753050315690,0.0398764,179.43,179.42,5.5711]
[1753050315889,0.0398764,179.43,179.42,14.39698562]
[1753050316693,347.29907495,179.59,179.47,3.06]
[1753050316694,3.22,179.5,179.47,3.06]
[1753050316892,3.22,179.5,179.48,3.06]
[1753050317694,3.22,179.53,179.48,3.06]
[1753050317892,6.96530352,179.52,179.46,3.06]
[1753050318094,3.22,179.52,179.47,0.0420039]
[1753050318292,3.22,179.52,179.48,5.76588562]
[1753050318592,3.22,179.58,179.49,3.06]
[1753050318991,3.22,179.53,179.5,8.6285]
[1753050319391,3.22,179.53,179.52,0.03822219]
[1753050319695,8.7877,179.53,179.52,0.03822219]
[1753050320199,3.22,179.53,179.52,0.03822219]
[1753050320695,211.54676551,179.59,179.52,0.03822219]
[1753050320696,8.7871,179.55,179.52,0.03822219]
[1753050320897,3.22,179.58,179.52,0.03822219]
[1753050321399,8.7877,179.53,179.52,0.03822219]
[1753050321593,3.22,179.53,179.46,3.06]
[1753050321792,5.5682,179.52,179.48,5.569]
[1753050321988,3.22,179.5,179.46,3.06]
[1753050322199,3.22,179.5,179.47,3.06]
[1753050322399,3.22,179.5,179.48,3.06]
[1753050322893,0.03603259,179.51,179.49,3.06]
[1753050323306,3.22,179.53,179.49,3.06]
[1753050323607,0.03939683,179.52,179.48,5.76588562]
[1753050323806,0.03939683,179.52,179.49,3.06]
[1753050324107,0.03939683,179.52,179.51,8.6283]
[1753050324806,0.03939683,179.52,179.51,14.39418562]
[1753050325509,3.22,179.58,179.52,3.06]
[1753050326598,3.22,179.57,179.56,5.5668]
[1753050327199,3.22,179.6,179.55,3.06]
[1753050327401,4.53997024,179.64,179.57,5.76588562]
[1753050327602,3.22,179.63,179.59,3.06]
[1753050327904,3.22,179.6,179.58,5.566]
[1753050328113,3.23,179.63,179.56,3.06]
[1753050328412,4.53997024,179.64,179.59,0.04102507]
[1753050328909,3.23,179.61,179.59,3.24102507]
[1753050329409,3.23,179.6,179.59,0.04102507]
[1753050329807,4.53997024,179.64,179.59,0.04102507]
[1753050330101,3.23,179.62,179.59,0.04102507]
[1753050330297,3.23,179.62,179.6,3.2]
[1753050330498,3.23,179.62,179.59,0.04102507]
[1753050330499,3.23,179.61,179.59,0.04102507]
[1753050330700,7.76997024,179.64,179.6,3.2]
[1753050331010,3.23,179.63,179.6,3.2]
[1753050331508,3.23,179.63,179.6,8.7653]
[1753050331905,3.23,179.63,179.6,3.2]
[1753050332508,4.53997024,179.64,179.6,3.2]
[1753050332705,3.23,179.63,179.6,3.2]
[1753050332909,3.23,179.63,179.59,0.04102507]
[1753050333105,3.23,179.62,179.59,3.24102507]
[1753050333305,3.23,179.62,179.6,3.2]
[1753050333505,7.76997024,179.64,179.59,3.54196361]
[1753050333705,7.76997024,179.64,179.62,3.2]
[1753050334306,3.23,179.63,179.6,3.2]
[1753050334606,3.23,179.62,179.61,5.565]
[1753050334808,7.76997024,179.64,179.61,3.2]
[1753050335209,7.76997024,179.64,179.62,3.2]
[1753050335406,7.76997024,179.64,179.62,8.7647]
[1753050335606,3.23,179.63,179.6,3.50093854]
[1753050335905,4.53997024,179.64,179.62,5.5647]
[1753050336108,4.53997024,179.64,179.62,3.2]
[1753050336505,4.53997024,179.64,179.61,3.2]
[1753050336705,7.76997024,179.64,179.63,3.2]
[1753050337013,7.76997024,179.64,179.62,5.5647]
[1753050337400,7.76997024,179.64,179.62,3.2]
[1753050337606,7.76997024,179.64,179.63,5.5646]
[1753050337812,7.76997024,179.64,179.62,3.2]
[1753050337813,3.23,179.63,179.62,3.2]
[1753050338007,4.53997024,179.64,179.61,3.2]
[1753050338206,4.53997024,179.64,179.63,8.7646]
[1753050339807,4.53997024,179.64,179.63,12.26553854]
[1753050340111,1e-08,179.64,179.63,12.26553854]
[1753050341412,0.96887355,179.74,179.69,5.5626]
[1753050341610,3.23,179.72,179.69,5.5626]
[1753050341805,0.96887355,179.74,179.66,3.50093854]
[1753050342010,3.23,179.72,179.69,3.2]
[1753050342409,3.23,179.71,179.69,3.2]
[1753050342918,3.23,179.73,179.71,3.2]
[1753050343513,3.23,179.73,179.72,5.5618]
[1753050343713,3.23,179.72,179.68,3.50093854]
[1753050344016,3.23,179.72,179.7,3.2]
[1753050344214,3.23,179.71,179.68,6.70093854]
[1753050344411,3.23,179.71,179.69,3.2]
[1753050344615,3.23,179.74,179.69,3.2]
[1753050344812,3.23,179.79,179.69,3.2]
[1753050345316,3.23,179.79,179.68,3.50093854]
[1753050345521,5.5614,179.74,179.68,3.50093854]
[1753050345721,3.23,179.72,179.7,5.5622]
[1753050345921,3.23,179.71,179.7,5.5622]
[1753050346418,8.7915,179.73,179.7,8.7622]
[1753050346619,3.23,179.72,179.7,8.7622]
[1753050346919,3.23,179.68,179.66,3.2]
[1753050347122,3.23,179.71,179.67,3.2]
[1753050347316,3.23,179.67,179.63,3.50093854]
[1753050347516,3.50093854,179.71,179.62,3.2]
[1753050347720,3.23,179.7,179.62,3.2]
[1753050347923,3.50093854,179.71,179.64,5.5642]
[1753050348122,3.23,179.7,179.62,3.2]
[1753050348319,3.23,179.7,179.6,6.70093854]
[1753050348515,5.5636,179.67,179.64,5.5642]
[1753050348819,3.23,179.65,179.64,8.7642]
[1753050349022,3.23,179.68,179.65,5.5638]
[1753050349220,3.23,179.7,179.64,3.2]
[1753050349421,3.23,179.7,179.64,6.70093854]
[1753050349615,3.23,179.7,179.65,3.2]
[1753050349820,3.23,179.69,179.66,3.2]
[1753050350021,3.23,179.69,179.67,3.2]
[1753050350220,3.23,179.78,179.68,3.2]
[1753050350525,0.96867128,179.77,179.68,3.2]
[1753050350724,5.5611,179.75,179.68,3.2]
[1753050350926,3.23,179.74,179.68,3.2]
[1753050351429,3.23,179.74,179.71,3.2]
[1753050351730,3.23,179.74,179.72,3.2]
[1753050351922,5.56,179.78,179.7,3.50093854]
[1753050352122,3.23,179.76,179.73,3.2]
[1753050352725,3.23,179.76,179.74,5.561]
[1753050353025,3.23,179.75,179.73,3.2]
[1753050353925,3.23,179.75,179.74,5.5612]
[1753050354120,3.23,179.75,179.74,8.7612]
[1753050354324,3.23,179.77,179.76,5.5606]
[1753050354525,3.23,179.79,179.76,3.2]
[1753050354830,3.23,179.78,179.76,3.2]
[1753050355421,3.23,179.83,179.77,3.2]
[1753050355829,3.23,179.83,179.8,3.2]
[1753050356027,3.23,179.83,179.81,3.2]
[1753050356227,3.23,179.87,179.8,3.2]
[1753050356533,3.23,179.9,179.83,3.2]
[1753050357023,8.7863,179.9,179.86,5.5573]
[1753050357229,3.23,179.88,179.86,5.5573]
[1753050357428,3.23,179.87,179.83,3.2]
[1753050357630,3.23,179.87,179.86,0.03836934]
[1753050358231,2.99,179.88,179.86,8.65586934]
[1753050358527,124.62,179.99,179.87,5.5572]
[1753050358720,2.99,179.88,179.87,3.06]
[1753050358919,2.99,179.88,179.86,0.03836934]
[1753050359328,2.99,179.88,179.82,3.06]
[1753050359624,4.57885882,179.89,179.87,3.50093854]
[1753050359829,4.57885882,179.89,179.88,3.06]
[1753050360130,4.53997024,179.89,179.87,3.50093854]
[1753050360426,2.99,179.88,179.81,6.56093854]
[1753050360628,2.99,179.86,179.75,3.06]
[1753050360818,3.50093854,179.84,179.75,3.06]
[1753050361021,2.99,179.81,179.77,5.56]
[1753050361233,2.99,179.8,179.77,3.06]
[1753050361631,2.99,179.8,179.77,8.6202]
[1753050361828,2.99,179.8,179.77,3.06]
[1753050362131,0.03988677,179.81,179.8,8.6193]
[1753050362426,2.99,179.85,179.8,3.06]
[1753050362634,4.53997024,179.89,179.82,3.50093854]
[1753050362827,2.99,179.85,179.81,3.06]
[1753050363030,7.52997024,179.89,179.86,5.5573]
[1753050363225,7.52997024,179.89,179.86,8.6173]
[1753050363226,2.99,179.88,179.86,8.6173]
[1753050363428,2.99,179.88,179.86,3.06]
[1753050363630,2.99,179.88,179.86,0.04072018]
[1753050364338,2.99,179.87,179.86,0.04072018]
[1753050365030,2.99,179.87,179.78,3.06]
[1753050365235,8.5473,179.87,179.83,5.5583]
[1753050365536,2.99,179.87,179.83,5.5583]
[1753050366135,2.99,179.87,179.76,3.06]
[1753050366331,3.02739253,179.87,179.76,3.06]
[1753050366530,3.02739253,179.87,179.71,385.1037]
[1753050366531,2.99,179.86,179.79,3.06]
[1753050366930,0.03696577,179.83,179.79,3.06]
[1753050367331,0.03696577,179.83,179.78,5.7450174]
[1753050367630,3.02696577,179.83,179.82,5.5587]
[1753050367834,0.03696577,179.83,179.82,8.6187]
[1753050371032,0.03696577,179.83,179.82,5.5587]
[1753050371227,2.99,179.82,179.8,3.06]
[1753050371433,2.99,179.81,179.78,3.06]
[1753050371835,2.99,179.81,179.8,5.5591]
[1753050372042,0.03706338,179.81,179.79,3.06]
[1753050372432,0.03706338,179.81,179.8,8.6193]
[1753050374440,2.99,179.88,179.87,5.5572]
[1753050375737,2.99,179.87,179.86,5.60000051]
[1753050376643,2.99,179.87,179.86,0.04260051]
[1753050377638,2.99,179.87,179.76,11.1208]
[1753050377639,2.99,179.85,179.78,3.06]
[1753050378239,2.99,179.84,179.81,3.06]
[1753050378445,2.99,179.88,179.79,8.8050174]
[1753050378744,2.99,179.85,179.79,3.06]
[1753050378940,3.03156708,179.85,179.79,3.06]
[1753050379438,3.03156708,179.85,179.83,5.5583]
[1753050379639,2.99,179.84,179.83,5.5583]
[1753050380634,0.04156708,179.85,179.83,8.6183]
[1753050380840,2.99,179.84,179.83,5.5583]
[1753050381840,0.04156708,179.85,179.84,5.5581]
[1753050382040,0.04156708,179.85,179.84,8.6181]
[1753050382240,2.99,179.86,179.84,3.06]
[1753050382442,2.99,179.88,179.85,3.06]
[1753050382746,0.04242383,179.86,179.85,3.06]
[1753050383043,0.04242383,179.86,179.85,8.6178]
[1753050384240,3.03242383,179.86,179.85,5.5578]
[1753050385246,0.04242383,179.86,179.85,8.6178]
[1753050385640,3.03242383,179.86,179.85,8.6178]
[1753050385835,3.03242383,179.86,179.85,5.5578]
[1753050386035,2.99,179.84,179.82,3.49025597]
[1753050386235,2.99,179.85,179.8,3.06]
[1753050386440,4.53997024,179.89,179.8,3.06]
[1753050386646,2.99,179.88,179.8,3.06]
[1753050386836,0.03709022,179.84,179.83,3.06]
[1753050387044,0.03709022,179.84,179.83,8.6184]
[1753050387240,2.99,179.86,179.84,3.06]
[1753050387642,4.53997024,179.89,179.85,3.06]
[1753050387847,2.99,179.87,179.84,3.06]
[1753050388143,3.02700216,179.87,179.82,3.49025597]
[1753050388445,3.02700216,179.87,179.83,5.5582]
[1753050388650,2.99,179.87,179.83,5.5582]
[1753050388837,3.02530396,179.87,179.82,5.5587]
[1753050389043,3.02530396,179.87,179.78,6.57025597]
[1753050389245,3.21,179.85,179.75,3.08]
[1753050389439,5.5595,179.8,179.76,5.5605]
[1753050389744,3.21,179.78,179.76,5.5605]
[1753050389945,3.21,179.77,179.76,5.5605]
[1753050390338,3.21,179.79,179.77,5.56]
[1753050390544,3.21,179.79,179.77,8.64]
[1753050390946,0.03648578,179.8,179.76,5.5605]
[1753050391146,3.21,179.77,179.76,5.5605]
[1753050391548,3.21,179.77,179.76,8.6405]
[1753050392649,3.21,179.77,179.76,5.5605]
[1753050392846,5.56,179.78,179.74,8.6409]
[1753050393051,3.21,179.75,179.74,5.5609]
[1753050394347,3.21,179.75,179.74,8.6409]
[1753050395148,3.21,179.77,179.74,3.08]
[1753050395346,5.5597,179.79,179.74,3.08]
[1753050395347,3.21,179.78,179.74,3.08]
[1753050395549,5.56,179.78,179.74,3.08]
[1753050395851,3.49025597,179.83,179.74,3.08]
[1753050395852,3.21,179.75,179.74,3.08]
[1753050396041,3.49025597,179.83,179.72,6.57025597]
[1753050396249,3.49025597,179.8,179.72,5.5616]
[1753050396551,3.21,179.79,179.69,3.08]
[1753050397246,5.5614,179.74,179.7,5.5622]
[1753050397442,3.21,179.72,179.69,3.08]
[1753050397648,3.21,179.72,179.7,3.08]
[1753050397846,3.21,179.72,179.66,122.92]
[1753050398050,3.21,179.72,179.61,3.08]
[1753050398251,3.21,179.7,179.61,3.08]
[1753050398748,6.70025597,179.7,179.61,3.08]
[1753050398949,3.21,179.64,179.58,129.43025597]
[1753050399655,3.21,179.66,179.56,3.08]
[1753050399957,3.21,179.62,179.61,5.5652]
[1753050400350,3.24766995,179.63,179.61,3.08]
[1753050400550,3.21,179.62,179.56,3.08]
[1753050401152,3.21,179.62,179.58,5.5661]
[1753050401554,3.21,179.62,179.56,3.08]
[1753050402257,3.21,179.62,179.57,5.5664]
[1753050402258,3.21,179.61,179.57,5.5664]
[1753050402753,3.21,179.61,179.58,5.5661]
[1753050403159,3.21,179.59,179.55,3.08]
[1753050403358,3.24766995,179.63,179.57,3.49025597]
[1753050403553,3.21,179.63,179.6,3.49025597]
[1753050403956,3.21,179.65,179.62,8.6447]
[1753050404254,0.04139203,179.63,179.62,3.08]
[1753050404458,3.25139203,179.63,179.61,5.5652]
[1753050404655,3.21,179.62,179.6,3.08]
[1753050404961,0.03545427,179.64,179.56,3.08]
[1753050405156,6.70025597,179.63,179.51,122.74]
[1753050405462,3.21,179.62,179.56,5.5667]
[1753050405657,0.03602712,179.59,179.56,5.5667]
[1753050405854,3.21,179.58,179.56,5.5667]
[1753050406057,3.21,179.57,179.56,5.5667]
[1753050406254,0.03602712,179.59,179.58,5.5662]
[1753050406462,0.03602712,179.59,179.58,8.6462]
[1753050407259,0.03602712,179.59,179.58,5.5662]
[1753050407461,0.03602712,179.59,179.58,8.6462]
[1753050407662,3.21,179.68,179.58,3.08]
[1753050407864,8.7731,179.68,179.62,3.08]
[1753050408057,3.21,179.68,179.62,8.6449]
[1753050408261,3.21,179.68,179.62,3.08]
[1753050408658,3.21,179.68,179.59,3.08]
[1753050408865,3.21,179.68,179.57,3.08]
[1753050409168,3.21,179.64,179.59,5.5658]
[1753050409369,3.21,179.64,179.57,3.08]
[1753050409573,3.49025597,179.67,179.57,3.08]
[1753050409767,3.21,179.66,179.55,3.49025597]
[1753050409968,3.21,179.59,179.54,3.08]
[1753050410175,3.49025597,179.64,179.54,3.08]
[1753050410371,3.21,179.63,179.54,8.6472]
[1753050410570,5.5661,179.59,179.54,8.6472]
[1753050410764,3.21,179.57,179.54,3.08]
[1753050410975,5.5662,179.58,179.53,3.08]
[1753050411176,3.21,179.57,179.54,3.08]
[1753050411372,3.21,179.62,179.54,3.11573369]
[1753050411570,5.5666,179.57,179.54,0.03573369]
[1753050411872,3.21,179.58,179.54,8.68313369]
[1753050412073,3.21,179.62,179.54,3.11573369]
[1753050412274,3.21,179.58,179.55,3.08]
[1753050412476,3.21,179.57,179.55,3.08]
[1753050412867,8.7765,179.57,179.55,3.08]
[1753050413072,3.49025597,179.63,179.54,0.03558192]
[1753050413373,3.21,179.55,179.54,0.03558192]
[1753050414174,3.21,179.57,179.54,3.11558192]
[1753050414376,3.21,179.56,179.54,3.11558192]
[1753050414675,3.21,179.56,179.54,3.08]
[1753050414870,3.21,179.68,179.54,8.6473]
[1753050415084,0.96911638,179.69,179.54,8.6473]
[1753050415085,3.21,179.62,179.54,8.6473]
[1753050415275,3.21,179.62,179.54,3.08]
[1753050415575,3.21,179.59,179.57,3.08]
[1753050415777,3.21,179.63,179.56,0.03565091]
[1753050415976,3.21,179.63,179.54,3.08]
[1753050416180,3.49025597,179.58,179.48,3.08]
[1753050416375,3.21,179.57,179.48,3.08]
[1753050416570,3.21,179.53,179.5,5.5685]
[1753050416773,3.21,179.54,179.52,3.08]
[1753050417477,3.21,179.53,179.5,3.08]
[1753050417774,3.21,179.53,179.51,3.08]
[1753050417973,3.21,179.55,179.48,3.49025597]
[1753050418165,3.21,179.55,179.53,3.0]
[1753050418367,3.26,179.61,179.54,3.0]
[1753050418775,5.5662,179.58,179.55,5.5669]
[1753050418974,3.26,179.58,179.55,8.5669]
[1753050419166,3.26,179.58,179.52,3.0]
[1753050419372,8.8258,179.6,179.55,3.0]
[1753050419572,3.26,179.59,179.57,3.0]
[1753050419878,3.26,179.59,179.56,3.0]
[1753050419879,3.26,179.58,179.56,3.0]
[1753050420472,3.26,179.6,179.58,3.0]
[1753050420667,3.26,179.64,179.55,3.03572117]
[1753050420870,3.26,179.61,179.55,3.03572117]
[1753050421273,3.26,179.61,179.55,6.52597714]
[1753050421476,3.26,179.6,179.57,3.0]
[1753050421677,3.26,179.64,179.56,3.0]
[1753050421979,3.26,179.59,179.57,3.0]
[1753050422181,215.49116457,179.65,179.58,0.0357444]
[1753050422374,5.5661,179.59,179.58,0.0357444]
[1753050422579,8.8261,179.59,179.58,0.0357444]
[1753050423279,3.26,179.64,179.58,3.0357444]
[1753050423675,3.26,179.64,179.58,0.0357444]
[1753050423980,8.8258,179.59,179.58,0.0357444]
[1753050429480,5.5668,179.56,179.55,3.0]
[1753050429681,8.8268,179.56,179.55,3.0]
[1753050429881,5.5668,179.56,179.55,3.0]
[1753050430083,0.03952751,179.6,179.55,3.0]
[1753050430283,3.26,179.59,179.55,3.0]
[1753050430483,3.26,179.59,179.57,3.0]
[1753050430683,5.5661,179.58,179.57,3.0]
[1753050430881,5.5661,179.58,179.55,3.0]
[1753050431083,5.5661,179.58,179.55,8.567]
[1753050431283,8.8266,179.57,179.55,3.0]
[1753050431587,3.26,179.56,179.55,3.0]
[1753050431887,3.26,179.59,179.56,3.0]
[1753050432186,3.26,179.59,179.57,3.0]
[1753050432381,0.03952751,179.6,179.56,3.49025597]
[1753050432586,0.03952751,179.6,179.59,3.0]
[1753050432776,3.26,179.64,179.59,3.0]
[1753050432979,3.72647283,179.63,179.6,3.0]